[Event "Prague Festival Futures 2024"]
[Site "Prague"]
[Date "2024.03.07"]
[Round "9.5"]
[White "Guntaka, Aayansh R"]
[Black "Markina, Sofiia"]
[Result "0-1"]
[ECO "B11"]
[WhiteElo "1651"]
[BlackElo "1680"]
[Annotator "NA RC"]
[PlyCount "136"]
[EventDate "2024.02.22"]
[EventType "tourn"]
[EventCountry "CZE"]
[SourceTitle "playchess.com"]
[Source "ChessBase"]
[SourceQuality "1"]
[TimeControl "40/5400+30:1800+30"]

1. e4 {[%emt 0:00:04]} c6 {[%emt 0:00:06]} 2. Nc3 {[%emt 0:00:04]} d5 {[%emt 0:00:05]} 3. Nf3 {[%emt 0:00:05]} Bg4 {[%emt 0:00:08]} 4. h3 {[%emt 0:00:10]} Bxf3 {[%emt 0:00:09]} 5. Qxf3 {[%emt 0:00:05]} e6 {[%emt 0:00:15]} 6. d3 {[%emt 0:00:28]} Bc5 {[%emt 0:04:27]} 7. Be2 {[%emt 0:04:00]} Ne7 {[%emt 0:00:23]} 8. Bd2 {[%emt 0:03:17]} O-O {[%emt 0:01:06]} 9. exd5 {[%emt 0:03:46]} exd5 {[%emt 0:04:22]} 10. O-O {[%emt 0:01:32]} Ng6 {[%emt 0:02:54]} 11. a4 {[%emt 0:06:13]} a5 {[%emt 0:04:44]} 12. Na2 {[%emt 0:04:28]} Nd7 {[%emt 0:05:00]} 13. c3 {[%emt 0:00:22]} Nf6 {[%emt 0:11:57]} 14. Bg5 {[%emt 0:09:00]} Be7 {[%emt 0:01:16]} 15. Bxf6 {[%emt 0:00:28]} Bxf6 {[%emt 0:00:06]} 16. Rab1 {[%emt 0:03:26]} Re8 {[%emt 0:05:38]} 17. Rfe1 {[%emt 0:03:51]} Ne5 {[%emt 0:01:41]} 18. Qf4 {[%emt 0:06:48]} Bg5 {[%emt 0:04:33]} 19. Qh2 {[%emt 0:11:39]} Bd2 {[%emt 0:05:02]} 20. Red1 {[%emt 0:00:30]} Qg5 {[%emt 0:00:12]} 21. d4 {[%emt 0:18:41]} Ng6 {[%emt 0:02:42]} 22. Bf1 {[%emt 0:00:00]} Nh4 {[%emt 0:03:43]} 23. Kh1 {[%emt 0:00:22]} Re6 {[%emt 0:03:05]} 24. g3 {[%emt 0:03:28]} Nf3 {[%emt 0:02:38]} 25. Qg2 {[%emt 0:00:20]} Qf5 {[%emt 0:06:39]} 26. h4 {[%emt 0:03:15]} g5 {[%emt 0:03:01]} 27. g4 {[%emt 0:01:50]} Qe4 {[%emt 0:05:36]} 28. h5 {[%emt 0:00:04]} f5 {[%emt 0:01:28]} 29. Qg3 {[%emt 0:06:26]} Rae8 {[%emt 0:02:20]} 30. Bg2 {[%emt 0:00:54]} fxg4 {[%emt 0:01:30]} 31. Bxf3 {[%emt 0:01:05]} gxf3 {[%emt 0:00:05]} 32. b4 {[%emt 0:03:14]} Rh6 {[%emt 0:01:36]} 33. Qh3 {[%emt 0:00:21]} g4 {[%emt 0:00:39]} 34. Rg1 {[%emt 0:01:25]} Rg6 {[%emt 0:01:19]} 35. Qh4 {[%emt 0:00:49]} Rg5 {[%emt 0:00:13]} 36. Rb2 {[%emt 0:04:48]} g3 {[%emt 0:01:27]} 37. fxg3 {[%emt 0:00:37]} f2+ {[%emt 0:00:15]} 38. Qxe4 {[%emt 0:00:04]} fxg1=Q+ {[%emt 0:00:11]} 39. Kxg1 {[%emt 0:00:07]} dxe4 {[%emt 0:00:28]} 40. Rxd2 {[%emt 0:00:11]} axb4 {[%emt 0:00:14]} 41. cxb4 {[%emt 0:30:10]} Rxg3+ {[%emt 0:30:24]} 42. Kh2 {[%emt 0:00:04]} Ra3 {[%emt 0:00:10]} 43. Nc1 {[%emt 0:00:32]} Rxa4 {[%emt 0:00:06]} 44. Rb2 {[%emt 0:00:15]} e3 {[%emt 0:00:29]} 45. Ne2 {[%emt 0:00:07]} Rea8 {[%emt 0:00:18]} 46. Rb3 {[%emt 0:00:17]} Ra3 {[%emt 0:00:05]} 47. Rb1 {[%emt 0:00:21]} Ra2 {[%emt 0:00:09]} 48. Re1 {[%emt 0:00:03]} R8a4 {[%emt 0:01:08]} 49. Kg3 {[%emt 0:00:06]} Rxb4 {[%emt 0:00:09]} 50. Kf3 {[%emt 0:00:05]} Ra3 {[%emt 0:00:13]} 51. Ke4 {[%emt 0:00:04]} c5 {[%emt 0:00:40]} 52. Ke5 {[%emt 0:00:54]} cxd4 {[%emt 0:00:16]} 53. Nf4 {[%emt 0:00:19]} d3 {[%emt 0:02:01]} 54. Ne6 {[%emt 0:00:44]} Kf7 {[%emt 0:02:28]} 55. Kd6 {[%emt 0:01:04]} Rb6+ {[%emt 0:00:10]} 56. Kd7 {[%emt 0:00:06]} Rxe6 {[%emt 0:00:07]} 57. Rf1+ {[%emt 0:00:18]} Rf6 {[%emt 0:00:04]} 58. Rxf6+ {[%emt 0:00:11]} Kxf6 {[%emt 0:00:02]} 59. Kc8 {[%emt 0:00:08]} d2 {[%emt 0:00:06]} 60. Kb8 {[%emt 0:00:03]} d1=Q {[%emt 0:00:10]} 61. Kc7 {[%emt 0:00:09]} Rc3+ {[%emt 0:00:21]} 62. Kb8 {[%emt 0:00:05]} Qd8+ {[%emt 0:00:05]} 63. Ka7 {[%emt 0:00:13]} Ra3+ {[%emt 0:00:12]} 64. Kxb7 {[%emt 0:00:05]} Qd5+ {[%emt 0:00:09]} 65. Kc7 {[%emt 0:00:12]} Rc3+ {[%emt 0:00:02]} 66. Kb6 {[%emt 0:00:12]} Qc5+ {[%emt 0:00:05]} 67. Ka6 {[%emt 0:00:17]} Rb3 {[%emt 0:00:17]} 68. h6 {[%emt 0:00:06]} Qb6# {[%emt 0:00:03]} 0-1